bitfinex-derivatives/quotes_ETHF0:USTF0_20251117
["timestamp","ask_amount","ask_price","bid_price","bid_amount"]
[1763413325815,0.03772999,3016.9,3016.4,3.2078]
[1763413326016,0.0035545,3016.9,3016.8,3.2078]
[1763413326620,0.04128449,3016.9,3016.8,3.2078]
[1763413327221,0.04128449,3016.9,3016.4,3.21166674]
[1763413327419,0.03772999,3016.5,3016.4,3.21166674]
[1763413327726,3.2078,3018.9,3016.5,9.3144]
[1763413328022,3.2078,3018.5,3017.5,3.2078]
[1763413328224,1.0137,3018.0,3017.5,3.2078]
[1763413328522,1.01788013,3018.0,3017.5,3.2078]
[1763413328717,0.03772999,3017.6,3017.5,3.2078]
[1763413329021,0.03772999,3017.6,3017.4,0.0049696]
[1763413329320,0.03772999,3017.5,3017.4,0.0049696]
[1763413330919,1.01788013,3018.0,3017.4,6.0049696]
[1763413331119,0.03772999,3018.4,3018.0,3.334]
[1763413331315,1.0137,3023.0,3020.3,3.2078]
[1763413331515,1.0137,3023.0,3020.9,0.83988925]
[1763413331719,1.0137,3023.0,3021.8,3.2078]
[1763413331920,1.0137,3023.0,3022.3,3.2078]
[1763413332222,0.00733964,3023.0,3022.7,3.2078]
[1763413332428,0.00733964,3023.0,3022.9,3.2078]
[1763413333130,0.0346,3023.7,3022.9,3.2078]
[1763413333319,0.0346,3023.7,3023.6,3.2078]
[1763413334120,0.0386671,3023.7,3023.6,3.2078]
[1763413334426,0.0386671,3023.7,3022.4,3.2078]
[1763413334427,6.0386671,3023.7,3022.4,3.2078]
[1763413334727,3.2078,3023.0,3022.4,3.2078]
[1763413335325,3.2078,3023.5,3022.4,3.2078]
[1763413335528,3.2078,3023.1,3022.4,3.2078]
[1763413337218,3.2078,3023.5,3022.4,3.2078]
[1763413339133,3.2078,3022.5,3022.3,0.00864858]
[1763413339730,1.0137,3022.8,3022.4,3.2078]
[1763413340531,3.2078,3023.3,3022.4,3.2078]
[1763413341533,3.2078,3022.9,3022.4,3.2078]
[1763413341828,3.2078,3023.3,3022.4,3.2078]
[1763413342524,3.2078,3022.8,3022.3,0.00864858]
[1763413343124,3.2078,3023.2,3022.4,3.2078]
[1763413344033,3.2078,3023.6,3022.9,3.2078]
[1763413344226,0.0386671,3023.7,3023.4,3.2078]
[1763413345129,0.0386671,3023.7,3022.3,0.84853783]
[1763413345130,3.2078,3023.6,3022.5,3.2078]
[1763413345435,1.0137,3023.0,3022.5,3.2078]
[1763413345734,1.0137,3023.0,3022.3,0.00864858]
[1763413346532,3.2078,3022.7,3022.3,0.00864858]
[1763413347227,3.2078,3022.7,3021.3,3.2078]
[1763413347431,1.0137,3023.0,3020.8,0.83988925]
[1763413347432,3.2078,3021.9,3020.8,0.83988925]
[1763413347637,3.2078,3021.9,3021.0,3.2078]
[1763413347838,1.1397,3022.0,3021.4,3.2078]
[1763413348032,1.0137,3023.0,3021.9,3.2078]
[1763413348231,3.2078,3022.7,3021.9,3.21017112]
[1763413348537,3.2078,3022.7,3022.1,0.00496089]
[1763413348736,0.00496089,3022.8,3022.4,3.2078]
[1763413349443,0.00496089,3022.8,3022.1,0.00496089]
[1763413349444,3.2078,3022.7,3022.1,0.00496089]
[1763413350536,3.2078,3022.7,3022.2,3.2078]
[1763413350732,0.00496089,3022.8,3022.6,3.2078]
[1763413350928,3.2078,3023.6,3022.7,0.90227719]
[1763413351127,0.0386671,3023.7,3023.2,3.2078]
[1763413351332,0.0386671,3023.7,3023.6,3.2078]
[1763413351923,0.0386671,3023.7,3023.2,3.2078]
[1763413352124,0.0386671,3023.7,3023.6,3.2078]
[1763413352326,0.0049366,3024.0,3023.6,3.2078]
[1763413353345,0.00831191,3024.0,3023.6,3.2078]
[1763413356040,1.05991191,3024.0,3023.6,3.2078]
[1763413356440,0.00831191,3024.0,3023.6,3.2078]
[1763413357256,3.2078,3024.8,3023.6,9.2078]
[1763413357434,3.2078,3024.8,3023.1,1.14578925]
[1763413357435,3.2078,3025.3,3024.4,3.2078]
[1763413358243,3.21065814,3025.3,3024.8,3.2078]
[1763413358439,3.21065814,3025.3,3024.5,0.00496089]
[1763413359436,3.2078,3024.6,3024.4,0.00368003]
[1763413359636,3.2078,3024.6,3023.6,4.3589208]
[1763413359637,1.0516,3024.0,3023.2,3.2078]
[1763413359832,3.2078,3023.9,3023.2,3.2078]
[1763413360440,1.0516,3024.0,3023.0,3.2078]
[1763413360441,3.2078,3023.7,3023.0,3.2078]
[1763413360641,0.00496089,3023.4,3023.1,0.85066918]
[1763413360844,0.00496089,3023.4,3023.2,0.85066918]
[1763413361042,0.00496089,3023.4,3023.0,0.00383712]
[1763413361244,0.00496089,3023.4,3023.1,0.8502482]
[1763413361450,0.00496089,3023.4,3023.2,1.69013745]
[1763413361748,0.00496089,3023.4,3023.3,0.8502482]
[1763413363240,0.00496089,3023.4,3023.3,1.69013745]
[1763413363440,3.2078,3024.1,3023.3,0.8502482]
[1763413363748,3.2078,3024.1,3023.9,0.86761313]
[1763413364044,3.2078,3024.5,3024.0,1.71786133]
[1763413364247,3.2078,3024.5,3024.1,0.8502482]
[1763413364446,3.2078,3024.5,3024.2,0.8502482]
[1763413364645,3.2078,3024.5,3023.8,0.86761313]
[1763413364845,3.2078,3024.1,3023.9,0.83437883]
[1763413365046,3.2078,3024.1,3024.0,0.83437883]
[1763413365343,3.2078,3024.5,3024.0,0.83437883]
[1763413365546,3.2078,3024.5,3024.1,0.83437883]
[1763413365747,3.2078,3024.5,3024.2,0.83437883]
[1763413365933,3.2078,3024.5,3024.3,0.83437883]
[1763413366138,3.2078,3024.5,3024.4,0.83437883]
[1763413373750,3.2078,3024.5,3024.4,1.70199196]
[1763413373950,3.2078,3024.5,3024.4,0.83437883]
[1763413374251,3.2078,3024.5,3024.4,1.70174401]
[1763413374756,3.2078,3024.5,3024.4,0.83437883]
[1763413375563,2.82543621,3026.7,3024.4,0.83437883]
[1763413375564,1.77383621,3026.8,3025.6,1.0258]
[1763413375758,5.53740217,3027.3,3025.6,1.0258]
[1763413375759,3.2078,3027.3,3026.4,4.07516518]
[1763413375959,1.0516,3027.6,3025.6,3.2078]
[1763413375960,3.2078,3026.7,3025.6,3.2078]
[1763413376164,1.0516,3027.6,3024.0,1.0509]
[1763413376165,3.2078,3025.9,3024.0,1.0509]
[1763413376363,3.2078,3025.2,3024.8,1.0509]
[1763413376564,3.2078,3026.2,3024.9,44.0078]
[1763413376765,3.2078,3026.5,3025.3,3.2078]
[1763413377061,0.00496089,3026.2,3025.6,1.26396089]
[1763413377468,3.2078,3026.5,3025.6,1.26396089]
[1763413377660,3.2102162,3026.5,3026.4,1.259]
[1763413378360,0.0024162,3026.5,3026.4,1.259]
[1763413378562,3.2078,3027.3,3026.4,7.259]
[1763413378766,2.82543621,3028.8,3025.6,1.26396089]
[1763413378767,3.2078,3026.6,3026.5,0.00496089]
[1763413378964,3.2078,3026.6,3025.0,2.36255755]
[1763413378965,9.2078,3026.6,3025.0,3.2078]
[1763413379164,3.2078,3025.8,3025.0,3.2078]
[1763413379559,3.21199157,3025.8,3025.0,3.2078]
[1763413379760,0.99947921,3025.8,3025.1,6.0]
[1763413379968,1.18221382,3027.3,3025.1,6.0]
[1763413379969,3.2078,3027.3,3025.7,3.2078]
[1763413380270,0.8634,3027.6,3025.1,0.00496089]
[1763413380271,1.1743,3026.7,3025.3,3.2078]
[1763413380459,3.2078,3026.4,3025.7,3.2078]
[1763413380660,0.00496089,3026.8,3025.7,3.2078]
[1763413380971,3.2078,3026.3,3025.7,3.2078]
[1763413381670,3.2078,3026.3,3025.3,3.2078]
[1763413382171,3.2078,3025.9,3025.3,3.2078]
[1763413382363,3.2078,3025.9,3025.1,0.00496089]
[1763413382560,3.2078,3025.5,3024.8,0.00399993]
[1763413383462,0.5872,3025.8,3024.8,0.00399993]
[1763413383463,3.2078,3025.1,3024.8,0.00896082]
[1763413384063,1.1743,3024.9,3023.8,3.2078]
[1763413384259,3.2078,3024.7,3023.8,3.2078]
[1763413384469,0.00496089,3025.3,3024.6,3.2078]
[1763413384765,0.00496089,3025.3,3025.0,3.2078]
[1763413384966,0.00496089,3025.3,3025.0,3.21042457]
[1763413386369,0.00496089,3025.3,3025.0,0.00262457]
[1763413386573,3.2078,3025.1,3024.2,3.2078]
[1763413386772,0.00496089,3025.3,3024.2,3.2078]
[1763413387672,0.00496089,3025.3,3024.7,3.2078]
[1763413388378,3.2078,3025.0,3024.4,0.00496089]
[1763413389877,1.1717,3024.9,3024.4,0.00496089]
[1763413390467,0.00496089,3025.3,3024.5,3.2078]
[1763413390777,3.2078,3024.7,3024.4,0.00496089]
[1763413390976,3.2078,3025.1,3024.4,0.00496089]
[1763413391373,0.00496089,3025.3,3024.4,0.00496089]
[1763413392177,0.00496089,3025.3,3025.1,3.2078]
[1763413399671,0.00496089,3025.3,3024.7,3.2078]
[1763413400090,0.00496089,3025.3,3025.1,3.2078]
[1763413401978,3.2078,3025.2,3024.7,3.2078]
[1763413402580,4.3795,3024.8,3024.4,0.00496089]
[1763413402880,5.56171382,3024.8,3023.2,3.2078]
[1763413403081,3.2078,3024.0,3023.2,3.2078]
[1763413403787,3.2078,3024.0,3023.3,0.00496089]
[1763413403986,3.21043467,3024.0,3023.3,0.00738103]
[1763413405178,3.2078,3023.6,3023.3,0.00738103]
[1763413405879,0.00496089,3023.8,3023.3,0.00738103]
[1763413408889,0.00496089,3023.8,3022.8,3.2078]
[1763413408890,3.2078,3023.4,3022.8,3.2078]
[1763413409389,3.2078,3023.4,3022.4,3.2078]
[1763413409790,3.2078,3023.4,3022.6,0.00330728]
[1763413410691,3.2078,3023.4,3022.9,3.2078]
[1763413412781,3.2078,3023.4,3022.6,0.00330728]
[1763413413795,0.6229,3023.3,3022.6,0.00330728]
[1763413414597,3.2078,3022.9,3022.6,0.00330728]
[1763413416395,0.8493,3022.6,3021.5,3.2078]
[1763413416599,3.2078,3022.4,3021.5,3.2078]
[1763413416802,0.8493,3022.6,3021.5,3.2078]
[1763413416998,3.2078,3022.4,3021.5,3.2078]
[1763413417404,0.00496089,3022.3,3021.5,3.21088425]
[1763413417801,0.00496089,3022.3,3021.9,3.2078]
[1763413418491,0.00496089,3022.3,3021.9,4.3552]
[1763413419095,0.00496089,3022.3,3021.9,3.2078]
[1763413419698,0.00496089,3022.3,3021.5,3.21088425]
[1763413421005,0.00496089,3022.3,3021.9,3.2078]
[1763413421708,0.00496089,3022.3,3020.7,0.26822063]
[1763413421709,0.3941,3021.9,3019.7,1.15842128]
[1763413421901,3.2078,3020.5,3019.1,1.40741332]
[1763413422105,3.2078,3020.5,3019.1,4.61521332]
[1763413422298,0.8462,3020.8,3019.1,0.26001332]
[1763413422299,3.2078,3019.7,3019.1,0.26001332]
[1763413422610,3.21076896,3019.7,3019.1,0.26275072]
[1763413422803,3.2078,3019.3,3019.1,0.0027374]
[1763413423301,0.00296896,3019.7,3019.2,10.3552]
[1763413423500,0.00296896,3019.7,3019.6,3.2078]
[1763413427312,0.00296896,3019.7,3019.2,1.1474]
[1763413427313,0.00296896,3019.7,3019.4,3.2078]
[1763413428111,0.00296896,3019.7,3019.2,1.1474]
[1763413431919,3.2078,3019.6,3019.1,0.0027374]
[1763413432110,3.2078,3019.6,3019.1,1.1501374]
[1763413432308,3.2078,3019.6,3019.1,0.0027374]
[1763413434016,3.2078,3019.2,3019.1,0.0027374]
[1763413435313,3.2078,3019.2,3018.7,0.03312739]
[1763413436112,3.2078,3019.6,3018.7,3.24092739]
[1763413436307,3.2078,3019.6,3018.8,3.2078]
[1763413436813,3.2078,3019.6,3019.1,1.0599]
[1763413439113,3.2078,3019.6,3018.8,3.2078]
[1763413439321,0.00296896,3019.7,3018.7,0.03659163]
[1763413439322,3.2078,3019.2,3018.7,0.03659163]
[1763413440121,0.00296896,3019.7,3018.7,0.03659163]
[1763413440122,3.2078,3019.6,3018.7,0.03659163]
[1763413440714,3.2078,3019.6,3019.0,3.2078]
[1763413440920,3.2078,3019.6,3019.1,1.0599]
[1763413441819,3.2078,3019.2,3018.7,0.03659163]
[1763413442113,0.00296896,3019.7,3018.3,3.2078]
[1763413442114,3.2078,3018.8,3018.3,3.2078]
[1763413443022,3.2078,3018.8,3018.3,0.00400718]
[1763413443821,3.2078,3018.4,3018.3,0.00400718]
[1763413444424,3.2078,3019.2,3018.4,1.0599]
[1763413444611,3.2078,3019.6,3019.1,4.2677]
[1763413444815,3.2078,3019.6,3019.1,1.0599]
[1763413445522,3.2078,3019.6,3018.6,3.2078]
[1763413445726,3.2078,3019.6,3019.1,1.0599]
[1763413445909,3.2078,3019.6,3018.6,3.2078]
[1763413446218,3.21076896,3019.7,3018.6,3.2078]
[1763413446526,3.21076896,3019.7,3019.1,1.0599]
[1763413447920,3.21076896,3019.7,3019.0,3.2078]
[1763413448124,3.21076896,3019.7,3019.1,1.0599]
[1763413452221,3.21076896,3019.7,3019.0,3.2078]
[1763413452522,4.38653571,3019.3,3018.3,0.00400718]
[1763413452714,1.17873571,3019.2,3018.3,0.00400718]
[1763413453116,1.17873571,3019.2,3018.4,1.0599]
[1763413453330,4.38653571,3019.3,3018.6,3.2078]
[1763413453627,3.2078,3019.3,3018.6,3.2078]
[1763413454419,1.18170467,3019.7,3019.1,1.0599]
[1763413454631,0.00296896,3019.7,3019.1,1.0599]
[1763413459627,3.2078,3019.2,3018.6,0.86601078]
[1763413459833,2.2078,3019.2,3018.3,3.21180718]
[1763413460031,3.2078,3019.6,3019.3,1.6616]
[1763413460542,1.7259,3019.3,3018.6,1.0198]
[1763413460835,1.7259,3019.3,3018.4,3.2078]
[1763413461043,3.2078,3019.6,3018.8,3.2078]
[1763413461228,4.38653571,3019.6,3018.8,3.2078]
[1763413461540,3.2078,3019.1,3018.6,1.0198]
[1763413462126,1.17873571,3019.4,3018.6,1.0198]
[1763413462434,4.38653571,3019.5,3018.6,1.0198]
[1763413462927,1.17873571,3019.4,3018.6,1.0198]
[1763413463135,3.2078,3019.0,3018.6,1.0198]
[1763413463335,3.2078,3019.0,3018.4,3.2078]
[1763413463723,4.38653571,3019.0,3018.4,3.2078]
[1763413464231,1.7259,3018.4,3018.3,0.00400718]
[1763413464439,1.17873571,3018.8,3018.3,0.00400718]
[1763413464734,1.17873571,3018.9,3018.3,0.00400718]
[1763413465142,1.17873571,3019.0,3018.3,3.21180718]
[1763413465436,1.76810357,3019.2,3018.3,3.21180718]
[1763413465437,1.17873571,3019.2,3018.3,3.21180718]
[1763413475250,3.2078,3019.0,3018.3,3.21180718]
[1763413475441,1.5707,3018.4,3018.3,0.00400718]
[1763413478051,1.17873571,3018.8,3018.7,1.7178]
[1763413478244,1.17873571,3018.8,3018.6,1.0147]
[1763413478245,4.38653571,3019.0,3018.3,0.00400718]
[1763413478446,1.17873571,3018.9,3018.3,0.00400718]
[1763413479754,4.38653571,3019.0,3018.3,0.00400718]
[1763413479956,1.17873571,3018.9,3018.3,0.00400718]
[1763413481956,4.38653571,3019.0,3018.3,3.21180718]
[1763413482146,4.38653571,3019.0,3018.3,0.00400718]
[1763413483243,4.38653571,3019.0,3018.3,3.21180718]
[1763413483439,1.17873571,3019.1,3019.0,1.7178]
[1763413483643,1.17873571,3019.4,3019.2,2.7325]
[1763413483947,3.2078,3019.5,3019.4,1.7178]
[1763413484338,3.2078,3019.5,3019.2,1.0147]
[1763413484544,3.2078,3019.5,3018.8,3.2078]
[1763413485846,3.2078,3019.5,3019.4,1.7178]
[1763413486043,3.2078,3019.5,3018.6,1.88071078]
[1763413486044,1.5707,3019.3,3018.6,1.0147]
[1763413486242,3.2078,3018.9,3018.6,1.0147]
[1763413486743,3.2078,3018.9,3018.4,3.2078]
[1763413486942,1.5707,3018.4,3018.3,0.00400718]
[1763413487139,1.5707,3018.4,3017.4,1.88581078]
[1763413487347,3.2078,3017.8,3017.4,1.0198]
[1763413487546,3.2078,3017.8,3017.7,1.7178]
[1763413487943,3.2078,3017.8,3017.4,1.0198]
[1763413488152,3.2078,3017.8,3017.4,1.02355285]
[1763413488948,3.2078,3017.8,3016.3,0.86601078]
[1763413488949,0.3941,3017.4,3016.3,0.86601078]
[1763413489252,3.2078,3016.8,3016.0,1.2394586]
[1763413490043,3.21114208,3016.8,3016.0,1.24220654]
[1763413490243,3.2078,3016.2,3016.0,1.24220654]
[1763413490444,3.2078,3016.2,3016.0,0.00274794]
[1763413490846,3.2078,3016.2,3016.1,1.7178]
[1763413491445,3.2078,3016.2,3016.0,0.00274794]
[1763413491844,3.2078,3016.2,3016.1,1.7178]
[1763413492944,0.00496926,3016.4,3016.3,1.7178]
[1763413493442,0.00496926,3016.4,3016.0,0.00274794]
[1763413494449,0.00496926,3016.4,3016.3,1.7178]
[1763413495647,0.00334208,3016.8,3016.7,1.7178]
[1763413495848,0.00334208,3016.8,3016.7,4.9256]
[1763413496251,4.78184208,3016.8,3016.0,0.00274794]
[1763413496852,0.00496926,3016.7,3016.1,0.00496926]
[1763413498050,3.2078,3016.4,3016.1,0.00496926]
[1763413499349,3.2078,3016.4,3016.3,0.855]
[1763413500151,0.00496926,3016.7,3016.1,0.00496926]
[1763413500353,0.00496926,3016.7,3016.3,0.855]
[1763413500665,2.32960217,3018.3,3016.3,0.855]
[1763413500666,3.2078,3018.1,3016.6,3.2078]
[1763413500954,3.2078,3018.1,3017.1,3.2078]
[1763413501157,3.2078,3018.5,3017.7,4.0628]
[1763413501351,3.2078,3018.5,3017.7,3.2078]
[1763413501556,3.2078,3018.0,3017.8,0.00496926]
[1763413502151,9.2078,3018.0,3017.8,0.00496926]
[1763413502462,3.2078,3018.0,3017.2,3.2078]
[1763413503049,0.00496926,3018.4,3017.0,0.855]
[1763413503050,0.00496926,3018.4,3017.7,0.855]
[1763413503253,0.00496926,3018.4,3018.1,3.2078]
[1763413503655,0.00496926,3018.4,3017.9,0.00496926]
[1763413503856,3.21276926,3018.4,3017.9,0.00496926]
[1763413504259,3.2078,3018.0,3017.9,0.00496926]
[1763413504858,0.00496926,3018.4,3017.9,0.00496926]
[1763413505259,3.21276926,3018.4,3017.9,0.00496926]
[1763413505766,0.00496926,3018.4,3017.9,0.00496926]
[1763413505967,3.21276926,3018.4,3017.9,0.00496926]
[1763413506864,4.05396926,3018.4,3017.9,0.00496926]
[1763413507266,3.2078,3018.0,3017.9,0.00496926]
[1763413509959,3.21276926,3018.4,3017.9,0.00496926]
[1763413510159,3.21276926,3018.4,3017.9,3.21276926]
[1763413510367,0.00496926,3018.4,3018.1,3.2078]
[1763413510563,3.21276926,3018.4,3017.9,0.00496926]
[1763413511266,3.21276926,3018.4,3017.9,3.21276926]
[1763413511669,3.21276926,3018.4,3017.9,0.00496926]
[1763413512464,0.00310395,3018.5,3018.4,0.855]
[1763413512666,3.2078,3019.2,3018.4,0.85882027]
[1763413512866,3.2078,3019.2,3018.4,4.06662027]
[1763413513473,0.00496926,3019.1,3018.4,4.06662027]
[1763413513768,0.0073062,3019.1,3018.4,4.06662027]
[1763413514173,0.0073062,3019.1,3018.4,3.21162027]
[1763413514366,0.0073062,3019.1,3018.4,4.06662027]
[1763413515672,0.0073062,3019.1,3018.8,3.2078]
[1763413516459,0.37536,3020.0,3019.1,0.855]
[1763413516669,0.37536,3020.0,3019.8,0.855]
[1763413516870,3.2078,3020.4,3019.8,0.855]
[1763413517064,3.2078,3020.8,3020.3,3.2078]
[1763413517277,3.2078,3020.8,3019.9,3.2078]
[1763413517468,3.21130118,3020.8,3020.2,0.00496926]
[1763413518476,0.00350118,3020.8,3020.5,0.8528]
[1763413519968,0.00350118,3020.8,3020.3,3.2078]
[1763413520381,0.00350118,3020.8,3020.7,3.2078]
[1763413520677,3.2078,3021.7,3020.7,3.21118122]
[1763413520878,3.2078,3022.5,3021.4,3.2078]
[1763413521077,3.2078,3022.5,3021.2,0.8528]
[1763413521078,3.2078,3022.5,3022.0,3.2078]
[1763413521474,5.7336,3023.7,3022.4,3.2078]
[1763413521475,3.2078,3023.1,3022.4,3.2078]
[1763413521779,3.21568485,3023.1,3022.4,3.21276926]
[1763413522177,0.00788485,3023.1,3022.4,3.21276926]
[1763413522476,0.00788485,3023.1,3022.8,3.2078]
[1763413523478,0.0346,3023.7,3022.8,3.2078]
[1763413523674,0.0346,3023.7,3023.6,3.2078]
[1763413523976,0.0346,3023.7,3023.3,0.8528]
[1763413524372,0.03836782,3023.7,3023.6,3.2078]
[1763413524579,3.2078,3024.3,3023.6,3.2078]
[1763413524880,3.2078,3024.3,3024.0,0.8528]
[1763413525279,3.2078,3024.3,3023.3,0.85589681]
[1763413525475,3.2078,3023.9,3023.3,0.85589681]
[1763413525783,0.00720246,3023.9,3023.3,0.85589681]
[1763413526080,3.2078,3024.7,3024.0,0.8528]
[1763413526279,3.2078,3025.2,3024.5,3.2078]
[1763413526875,3.2078,3025.2,3024.0,0.8528]
[1763413526876,0.00367208,3025.2,3024.9,3.2078]
[1763413528079,3.2078,3025.6,3025.4,0.804]
[1763413528280,3.2078,3026.1,3025.4,0.804]
[1763413528471,3.2078,3026.3,3025.4,4.0118]
[1763413528872,3.21109657,3026.3,3025.4,4.0118]
[1763413530679,3.21109657,3026.3,3025.4,3.2078]
[1763413530880,3.2078,3025.8,3025.4,3.2078]
[1763413531083,3.2078,3025.8,3024.8,3.2078]
[1763413531584,3.2078,3026.2,3025.4,3.2078]
[1763413531881,0.00329657,3026.3,3024.7,0.804]
[1763413531882,3.2078,3025.8,3024.7,4.0118]
[1763413532676,3.2078,3025.3,3024.7,3.2078]
[1763413532874,3.2078,3024.9,3024.3,3.14633964]
[1763413533078,3.2078,3024.9,3024.0,0.8528]
[1763413533270,0.05754615,3025.8,3023.3,0.85589681]
[1763413533271,3.2078,3024.1,3023.5,3.2078]
[1763413533484,3.21131595,3024.1,3023.5,3.2078]
[1763413533678,3.21131595,3024.1,3023.3,0.00309681]
[1763413533878,3.2078,3023.7,3023.4,0.00496089]
[1763413534075,0.00496089,3024.0,3023.6,3.2078]
[1763413534886,0.00496089,3024.0,3023.4,3.21276089]
[1763413535581,0.00496089,3024.0,3023.4,0.00496089]
[1763413535786,3.2078,3023.8,3023.4,0.00496089]
[1763413537480,3.2078,3023.8,3023.3,0.00309681]
[1763413537787,3.2078,3023.4,3022.1,3.2078]
[1763413538183,3.2078,3023.0,3022.1,3.2078]
[1763413538590,3.2078,3023.0,3022.2,0.00496089]
[1763413539283,3.2078,3022.6,3022.2,0.00496089]
[1763413539483,3.2078,3022.6,3021.5,3.2078]
[1763413539689,3.2078,3022.2,3021.0,3.2078]
[1763413539887,3.2078,3022.2,3021.4,3.2078]
[1763413540189,3.2078,3021.9,3021.0,3.2078]
[1763413540390,0.00496089,3021.8,3021.1,0.00496089]
[1763413540581,0.00834631,3021.8,3021.1,0.00850094]
[1763413541293,3.2078,3021.3,3020.0,0.804]
[1763413541476,3.2078,3020.9,3020.0,0.804]
[1763413541681,3.2078,3021.4,3020.3,3.2078]
[1763413542085,3.2078,3021.4,3020.7,3.2078]
[1763413542281,3.2078,3021.0,3019.7,3.2078]
[1763413542587,3.2078,3020.6,3019.7,3.2078]
[1763413543484,3.2078,3020.6,3019.8,0.00496089]
[1763413543684,3.2078,3021.0,3020.2,3.2078]
[1763413544283,3.2078,3020.6,3019.8,3.21276089]
[1763413544592,3.2078,3020.2,3019.8,0.00496089]
[1763413545080,0.8289,3020.8,3019.8,0.00496089]
[1763413545081,3.2078,3020.6,3019.8,0.00496089]
[1763413545284,3.2078,3019.9,3019.7,0.00297046]
[1763413545489,3.2078,3019.9,3018.6,3.2078]
[1763413545880,3.2078,3020.3,3019.4,3.2078]
[1763413546189,0.00496089,3020.2,3019.5,0.00330728]
[1763413546384,0.00496089,3020.2,3019.5,0.00576893]
[1763413547596,0.00496089,3020.2,3020.0,0.804]
[1763413548691,0.00496089,3020.2,3019.8,3.2078]
[1763413551180,0.00496089,3020.2,3019.5,0.00576893]
[1763413553995,0.00496089,3020.2,3019.8,3.2078]
[1763413554395,0.00496089,3020.2,3019.8,4.0118]
[1763413561001,0.00496089,3020.2,3019.8,3.2078]
[1763413561202,0.00496089,3020.2,3019.8,3.9516]
[1763413562106,0.00496089,3020.2,3019.8,3.2078]
[1763413562601,6.0,3020.1,3019.5,0.00576893]
[1763413562805,3.2078,3019.6,3019.5,0.00576893]
[1763413563107,3.21123021,3019.6,3019.5,0.00576893]
[1763413563803,9.21123021,3019.6,3018.6,3.2078]
[1763413564010,3.2078,3019.2,3018.6,3.2078]
[1763413564705,0.00343021,3019.6,3019.1,0.7438]
[1763413564896,0.00343021,3019.6,3019.1,0.74804909]
[1763413565703,0.00343021,3019.6,3019.1,3.95584909]
[1763413566409,0.00343021,3019.6,3019.5,4.483]
[1763413566609,0.00343021,3019.6,3019.5,1.2752]
[1763413567017,0.00343021,3019.6,3019.5,4.483]
[1763413567216,3.021e-05,3019.6,3019.5,4.483]
[1763413568818,3.21276089,3020.2,3019.5,4.483]
[1763413569011,3.21276089,3020.2,3020.1,1.2752]
[1763413569012,0.00496089,3020.2,3020.1,1.2752]
[1763413569316,1.17873571,3020.9,3020.5,1.2752]
[1763413569617,3.2078,3021.0,3020.5,1.2752]
[1763413570019,3.21179499,3021.0,3020.5,1.2752]
[1763413570719,3.2078,3020.6,3020.5,1.2752]
[1763413571013,3.2078,3020.6,3020.4,0.00496089]
[1763413571409,3.2078,3020.6,3020.5,1.2752]
[1763413571612,3.2078,3020.6,3020.4,0.00496089]
[1763413571809,1.2227,3020.5,3020.4,0.00496089]
[1763413572218,2.40143571,3020.5,3020.4,0.00496089]
[1763413572522,1.2227,3020.5,3020.4,0.00496089]
[1763413573919,1.17873571,3020.6,3020.4,0.00496089]
[1763413574218,1.2227,3020.5,3020.4,0.00496089]
[1763413574416,3.2078,3020.6,3020.4,0.00496089]
[1763413574623,3.2078,3020.6,3020.4,0.74876089]
[1763413574817,1.17873571,3020.9,3020.4,0.74876089]
[1763413575116,1.17873571,3020.8,3020.4,0.00496089]
[1763413575321,4.4305,3020.5,3020.4,0.00496089]
[1763413575612,3.2078,3020.5,3020.4,0.00496089]
[1763413575817,1.17873571,3020.8,3020.4,0.00496089]
[1763413576019,4.38653571,3020.9,3020.4,0.73726089]
[1763413576219,3.2078,3020.9,3020.4,0.73726089]
[1763413576721,1.1827307,3021.0,3020.9,1.2345]
[1763413576722,0.00399499,3021.0,3020.9,1.2345]
[1763413576922,0.00399499,3021.0,3020.9,4.4423]
[1763413577121,3.2078,3021.7,3021.0,1.9668]
[1763413577324,3.2078,3021.7,3021.6,1.9668]
[1763413577623,3.2078,3022.1,3021.6,1.9668]
[1763413578020,3.21047254,3022.1,3021.6,0.00343535]
[1763413579229,4.217,3021.7,3021.6,0.00343535]
[1763413580422,3.2078,3021.7,3021.6,0.00343535]
[1763413582522,3.2078,3021.7,3021.5,0.00496089]
[1763413582523,1.0058,3021.6,3021.5,0.00496089]
[1763413582729,1.0058,3021.6,3020.4,3.9401]
[1763413582933,3.2078,3021.2,3020.4,3.9401]
[1763413583628,3.2078,3021.2,3020.4,3.94287269]
[1763413583930,3.2078,3021.2,3020.5,0.00496089]
[1763413584336,1.0008,3020.6,3020.5,0.00496089]
[1763413584827,1.0008,3020.5,3019.2,0.7323]
[1763413585020,3.2078,3020.0,3019.2,0.7323]
[1763413585431,3.2078,3020.0,3019.5,3.2078]
[1763413585621,3.2078,3020.0,3019.2,0.7323]
[1763413585817,0.00496089,3019.9,3019.2,0.7346707]
[1763413586022,0.00890123,3019.9,3019.2,0.7346707]
[1763413586221,3.2078,3019.6,3019.2,0.7346707]
[1763413587129,0.00890123,3019.9,3019.2,0.7346707]
[1763413587333,0.00890123,3019.9,3019.5,3.2078]
[1763413587522,0.00890123,3019.9,3019.2,0.7346707]
[1763413589029,0.00890123,3019.9,3019.8,1.9072]
[1763413591838,0.00890123,3019.9,3019.8,0.7271]
[1763413592031,0.00890123,3019.9,3019.8,1.9072]
[1763413592737,0.00890123,3019.9,3019.8,0.7271]
[1763413592939,0.00890123,3019.9,3019.8,1.9072]
[1763413593440,1.23e-06,3019.9,3019.8,5.115]
[1763413593640,1.18526691,3020.8,3019.8,11.115]
[1763413593944,3.2078,3020.9,3020.2,3.2078]
[1763413594141,3.2078,3020.4,3019.8,0.7271]
[1763413594445,3.2078,3020.8,3020.4,0.7271]
[1763413594736,3.21166911,3020.8,3020.4,0.7271]
[1763413595128,3.21166911,3020.8,3020.7,1.1801]
[1763413596334,0.00386911,3020.8,3020.7,1.1801]
[1763413597942,0.00386911,3020.8,3020.4,3.9349]
[1763413598245,3.21166911,3020.8,3020.4,3.9349]
[1763413599630,0.00496089,3020.9,3020.7,1.1801]
[1763413599835,3.2078,3021.7,3021.0,0.7271]